[Event "*** SCC Grand Prix: Titled Tuesday Blitz"]
[Site "Chess.com"]
[Date "2020.09.08"]
[Round "1"]
[White "dpopadic"]
[Black "frederiksvane"]
[Result "0-1"]
[WhiteElo "2353"]
[BlackElo "2686"]
[TimeControl "180+1"]
[EndTime "10:07:54 PDT"]
[Termination "frederiksvane won on time"]

1. e4 {[%clk 0:03:00.9]} 1... c5 {[%clk 0:02:58]} 2. Nc3 {[%clk 0:02:59.8]} 2...
e6 {[%clk 0:02:57.8]} 3. d3 {[%clk 0:02:59]} 3... Nc6 {[%clk 0:02:56.9]} 4. g4
{[%clk 0:02:58.8]} 4... d5 {[%clk 0:02:53.7]} 5. Bg2 {[%clk 0:02:58.6]} 5...
dxe4 {[%clk 0:02:50.6]} 6. Nxe4 {[%clk 0:02:57.6]} 6... Nf6 {[%clk 0:02:46.1]}
7. Nh3 {[%clk 0:02:53.3]} 7... Bd7 {[%clk 0:02:32.9]} 8. O-O {[%clk 0:02:51.7]}
8... Qc7 {[%clk 0:02:29.1]} 9. Be3 {[%clk 0:02:41.2]} 9... Nxe4 {[%clk
0:02:05.7]} 10. Bxe4 {[%clk 0:02:37.9]} 10... Bd6 {[%clk 0:02:02.9]} 11. f4
{[%clk 0:02:31.5]} 11... f5 {[%clk 0:02:01.1]} 12. Bf3 {[%clk 0:02:25.8]} 12...
fxg4 {[%clk 0:02:00.1]} 13. Bxg4 {[%clk 0:02:25.8]} 13... O-O-O {[%clk
0:02:00.1]} 14. Ng5 {[%clk 0:02:20.3]} 14... Rde8 {[%clk 0:01:58.9]} 15. Qd2
{[%clk 0:02:02.7]} 15... h6 {[%clk 0:01:58.2]} 16. Nf7 {[%clk 0:02:00.1]} 16...
Rhf8 {[%clk 0:01:57.4]} 17. Nxd6+ {[%clk 0:01:58.8]} 17... Qxd6 {[%clk
0:01:58.3]} 18. Rae1 {[%clk 0:01:50.8]} 18... Nd4 {[%clk 0:01:57.6]} 19. c3
{[%clk 0:01:38.5]} 19... Nf5 {[%clk 0:01:25.3]} 20. Bf2 {[%clk 0:01:31.8]} 20...
Bc6 {[%clk 0:01:25.3]} 21. Re5 {[%clk 0:01:26.3]} 21... b6 {[%clk 0:01:25]} 22.
Rfe1 {[%clk 0:01:24.3]} 22... Kb7 {[%clk 0:01:11.5]} 23. Qe2 {[%clk 0:01:18.8]}
23... Bd7 {[%clk 0:00:55.5]} 24. Bf3+ {[%clk 0:01:12.2]} 24... Bc6 {[%clk
0:00:54.4]} 25. Bxc6+ {[%clk 0:01:02.2]} 25... Kxc6 {[%clk 0:00:55.3]} 26. Rxe6
{[%clk 0:00:57.8]} 26... Rxe6 {[%clk 0:00:56.2]} 27. Qxe6 {[%clk 0:00:57.2]}
27... Qxe6 {[%clk 0:00:57.1]} 28. Rxe6+ {[%clk 0:00:56]} 28... Kd7 {[%clk
0:00:58]} 29. Re2 {[%clk 0:00:49.4]} 29... Ne7 {[%clk 0:00:53.9]} 30. Bg3 {[%clk
0:00:42.5]} 30... Nd5 {[%clk 0:00:54]} 31. Re4 {[%clk 0:00:40.3]} 31... Nf6
{[%clk 0:00:53]} 32. Re2 {[%clk 0:00:36.3]} 32... Nd5 {[%clk 0:00:53]} 33. Re4
{[%clk 0:00:35.6]} 33... Nf6 {[%clk 0:00:52.1]} 34. Re2 {[%clk 0:00:35.5]} 34...
Rf7 {[%clk 0:00:47.2]} 35. Kg2 {[%clk 0:00:34.1]} 35... Nd5 {[%clk 0:00:44.7]}
36. Re4 {[%clk 0:00:33.6]} 36... Nf6 {[%clk 0:00:44.4]} 37. Re2 {[%clk
0:00:30.6]} 37... Nd5 {[%clk 0:00:42.3]} 38. Re4 {[%clk 0:00:30.4]} 38... a5
{[%clk 0:00:22.4]} 39. d4 {[%clk 0:00:30.3]} 39... Nf6 {[%clk 0:00:22.1]} 40.
Re5 {[%clk 0:00:28.7]} 40... cxd4 {[%clk 0:00:22.3]} 41. cxd4 {[%clk 0:00:27.2]}
41... Ng4 {[%clk 0:00:21.4]} 42. Re2 {[%clk 0:00:24.2]} 42... Nf6 {[%clk
0:00:19.8]} 43. Re5 {[%clk 0:00:23.1]} 43... Ng4 {[%clk 0:00:20]} 44. Re2 {[%clk
0:00:22.9]} 44... Kd6 {[%clk 0:00:18.4]} 45. f5+ {[%clk 0:00:19.8]} 45... Kd5
{[%clk 0:00:18]} 46. Re6 {[%clk 0:00:17.9]} 46... Rxf5 {[%clk 0:00:12.9]} 47.
Rxb6 {[%clk 0:00:17.1]} 47... Kxd4 {[%clk 0:00:13.4]} 48. b4 {[%clk 0:00:10.9]}
48... Ne3+ {[%clk 0:00:13.5]} 49. Kh3 {[%clk 0:00:06.5]} 49... Rh5+ {[%clk
0:00:13.8]} 50. Bh4 {[%clk 0:00:06.5]} 50... g5 {[%clk 0:00:14.5]} 51. bxa5
{[%clk 0:00:02.2]} 51... Rxh4+ {[%clk 0:00:14.9]} 52. Kg3 {[%clk 0:00:01.9]}
52... Rg4+ {[%clk 0:00:15.4]} 0-1

[Event "*** SCC Grand Prix: Titled Tuesday Blitz"]
[Site "Chess.com"]
[Date "2020.09.08"]
[Round "1"]
[White "GothamChess"]
[Black "Batcu"]
[Result "1-0"]
[WhiteElo "2568"]
[BlackElo "2239"]
[TimeControl "180+1"]
[EndTime "10:07:58 PDT"]
[Termination "GothamChess won by resignation"]

1. e4 {[%clk 0:03:00.8]} 1... c5 {[%clk 0:02:59.2]} 2. a3 {[%clk 0:03:00.5]}
2... Nc6 {[%clk 0:02:56.2]} 3. b4 {[%clk 0:03:00.8]} 3... cxb4 {[%clk
0:02:36.9]} 4. axb4 {[%clk 0:03:01]} 4... Nxb4 {[%clk 0:02:37.3]} 5. c3 {[%clk
0:03:01.8]} 5... Nc6 {[%clk 0:02:33.9]} 6. d4 {[%clk 0:03:02.7]} 6... d6 {[%clk
0:02:33]} 7. Bd3 {[%clk 0:03:01.8]} 7... Nf6 {[%clk 0:02:31.9]} 8. f4 {[%clk
0:03:02.2]} 8... g6 {[%clk 0:02:30.9]} 9. Nf3 {[%clk 0:03:02.5]} 9... Bg7 {[%clk
0:02:31.1]} 10. O-O {[%clk 0:03:03.2]} 10... O-O {[%clk 0:02:31]} 11. h3 {[%clk
0:03:03.9]} 11... Qc7 {[%clk 0:02:28.7]} 12. Be3 {[%clk 0:03:03.7]} 12... e5
{[%clk 0:02:28.1]} 13. fxe5 {[%clk 0:02:53.2]} 13... dxe5 {[%clk 0:02:27.8]} 14.
d5 {[%clk 0:02:53.8]} 14... Nb8 {[%clk 0:02:16.9]} 15. Qe1 {[%clk 0:02:48.1]}
15... Ne8 {[%clk 0:02:09.1]} 16. Qh4 {[%clk 0:02:43.9]} 16... Nd6 {[%clk
0:02:06.1]} 17. Ng5 {[%clk 0:02:27.6]} 17... h5 {[%clk 0:01:56.6]} 18. g4 {[%clk
0:02:15.6]} 18... f6 {[%clk 0:01:53.7]} 19. Ne6 {[%clk 0:02:05.2]} 19... Bxe6
{[%clk 0:01:53.3]} 20. dxe6 {[%clk 0:02:06]} 20... hxg4 {[%clk 0:01:51.5]} 21.
Qxg4 {[%clk 0:02:03.5]} 21... f5 {[%clk 0:01:32.5]} 22. Qxg6 {[%clk 0:01:44]}
22... fxe4 {[%clk 0:01:30.4]} 23. Rxf8+ {[%clk 0:01:37.6]} 23... Kxf8 {[%clk
0:01:29.7]} 24. Be2 {[%clk 0:01:14.5]} 24... Nc6 {[%clk 0:01:25.9]} 25. Nd2
{[%clk 0:01:13.4]} 25... Ne7 {[%clk 0:01:21.9]} 26. Qh7 {[%clk 0:01:03.6]} 26...
Qxc3 {[%clk 0:01:12]} 27. Rf1+ {[%clk 0:01:03.8]} 27... Ke8 {[%clk 0:01:11.9]}
28. Bh5+ {[%clk 0:00:45.6]} 28... Kd8 {[%clk 0:01:09.9]} 29. Qxg7 {[%clk
0:00:19.7]} 29... Qxe3+ {[%clk 0:01:08.4]} 30. Rf2 {[%clk 0:00:19.9]} 30... Ndf5
{[%clk 0:00:53.6]} 31. Qh8+ {[%clk 0:00:17.7]} 31... Kc7 {[%clk 0:00:52.3]} 32.
Qxe5+ {[%clk 0:00:16.7]} 32... Nd6 {[%clk 0:00:46.8]} 33. Qxd6+ {[%clk
0:00:08.4]} 33... Kxd6 {[%clk 0:00:44]} 34. Nc4+ {[%clk 0:00:08.2]} 34... Kxe6
{[%clk 0:00:44]} 35. Nxe3 {[%clk 0:00:08.8]} 35... a5 {[%clk 0:00:43.1]} 36.
Bg4+ {[%clk 0:00:04.7]} 36... Ke5 {[%clk 0:00:43.1]} 37. Rf7 {[%clk 0:00:04.6]}
37... Nd5 {[%clk 0:00:40.4]} 38. Rf5+ {[%clk 0:00:04.3]} 38... Kd4 {[%clk
0:00:37.1]} 39. Nxd5 {[%clk 0:00:04.8]} 39... a4 {[%clk 0:00:37.3]} 40. Nb6
{[%clk 0:00:04.6]} 40... Ra6 {[%clk 0:00:34.7]} 41. Rd5+ {[%clk 0:00:05.2]}
41... Ke3 {[%clk 0:00:34.6]} 42. h4 {[%clk 0:00:03.9]} 42... Rxb6 {[%clk
0:00:33]} 43. Ra5 {[%clk 0:00:04.6]} 43... Rb4 {[%clk 0:00:28.8]} 44. h5 {[%clk
0:00:04.3]} 44... Kf4 {[%clk 0:00:27.5]} 45. h6 {[%clk 0:00:03]} 45... Kg3
{[%clk 0:00:21.2]} 46. Bd1 {[%clk 0:00:02.2]} 46... Rb1 {[%clk 0:00:19.8]} 47.
Rd5 {[%clk 0:00:01.7]} 47... Rb6 {[%clk 0:00:18.4]} 48. h7 {[%clk 0:00:01.9]}
48... Rh6 {[%clk 0:00:09.9]} 49. Rh5 {[%clk 0:00:02.4]} 49... Rxh7 {[%clk
0:00:09.7]} 50. Rxh7 {[%clk 0:00:02.6]} 50... b5 {[%clk 0:00:10.4]} 51. Rb7
{[%clk 0:00:03.3]} 51... a3 {[%clk 0:00:10.1]} 52. Rxb5 {[%clk 0:00:03.5]} 52...
a2 {[%clk 0:00:10.8]} 53. Ra5 {[%clk 0:00:04.4]} 1-0

[Event "*** SCC Grand Prix: Titled Tuesday Blitz"]
[Site "Chess.com"]
[Date "2020.09.08"]
[Round "1"]
[White "Fandorine"]
[Black "Ave_Mariia"]
[Result "1-0"]
[WhiteElo "2901"]
[BlackElo "2444"]
[TimeControl "180+1"]
[EndTime "10:08:01 PDT"]
[Termination "Fandorine won by resignation"]

1. d4 {[%clk 0:02:58.2]} 1... Nf6 {[%clk 0:02:58.7]} 2. Nf3 {[%clk 0:02:55.1]}
2... e6 {[%clk 0:02:57.4]} 3. Bg5 {[%clk 0:02:54.7]} 3... c5 {[%clk 0:02:51.5]}
4. e3 {[%clk 0:02:53.7]} 4... Be7 {[%clk 0:02:44.9]} 5. Nbd2 {[%clk 0:02:52.9]}
5... O-O {[%clk 0:02:44.9]} 6. c3 {[%clk 0:02:52.8]} 6... d5 {[%clk 0:02:43.9]}
7. Bd3 {[%clk 0:02:52.5]} 7... h6 {[%clk 0:02:40.4]} 8. Bh4 {[%clk 0:02:44.9]}
8... b6 {[%clk 0:02:35.7]} 9. Qe2 {[%clk 0:02:44.7]} 9... Bb7 {[%clk 0:02:34.9]}
10. Ne5 {[%clk 0:02:31.8]} 10... Nbd7 {[%clk 0:02:27.6]} 11. Bxf6 {[%clk
0:02:16.1]} 11... Nxf6 {[%clk 0:02:22.4]} 12. f4 {[%clk 0:02:16.3]} 12... Ne4
{[%clk 0:02:19]} 13. Nxe4 {[%clk 0:02:10.7]} 13... dxe4 {[%clk 0:02:19.2]} 14.
Ba6 {[%clk 0:02:11.3]} 14... Bxa6 {[%clk 0:02:07.5]} 15. Qxa6 {[%clk 0:02:12.2]}
15... cxd4 {[%clk 0:02:07.8]} 16. Nc6 {[%clk 0:01:47.5]} 16... Qc7 {[%clk
0:02:01.9]} 17. Nxd4 {[%clk 0:01:45.5]} 17... Bc5 {[%clk 0:01:58.1]} 18. O-O-O
{[%clk 0:01:39.3]} 18... Bxd4 {[%clk 0:01:52.2]} 19. Rxd4 {[%clk 0:01:38.8]}
19... e5 {[%clk 0:01:24.7]} 20. Rxe4 {[%clk 0:01:13.4]} 20... exf4 {[%clk
0:01:23.6]} 21. exf4 {[%clk 0:01:13.8]} 21... Rad8 {[%clk 0:01:20.7]} 22. Rhe1
{[%clk 0:01:10.8]} 22... Rd7 {[%clk 0:01:14.8]} 23. g3 {[%clk 0:01:06.9]} 23...
Rfd8 {[%clk 0:01:03.3]} 24. Re8+ {[%clk 0:01:06.4]} 24... Kh7 {[%clk 0:01:03.4]}
25. Rxd8 {[%clk 0:01:05]} 25... Qxd8 {[%clk 0:01:02.5]} 26. Qe2 {[%clk
0:01:05.5]} 26... a5 {[%clk 0:00:51.2]} 27. Rd1 {[%clk 0:01:00]} 27... a4 {[%clk
0:00:41.8]} 28. Qc2+ {[%clk 0:00:57.2]} 28... g6 {[%clk 0:00:40.1]} 29. Qxa4
{[%clk 0:00:57.3]} 29... b5 {[%clk 0:00:34.3]} 30. Qb3 {[%clk 0:00:52.9]} 30...
Kg7 {[%clk 0:00:28.7]} 31. a3 {[%clk 0:00:46.9]} 31... Qe7 {[%clk 0:00:24.2]}
32. Rxd7 {[%clk 0:00:42]} 32... Qxd7 {[%clk 0:00:25.1]} 33. Qd1 {[%clk
0:00:42.1]} 33... Qh3 {[%clk 0:00:22.7]} 34. Qd4+ {[%clk 0:00:39.7]} 34... Kh7
{[%clk 0:00:21.9]} 35. Qf2 {[%clk 0:00:39]} 35... Qf5 {[%clk 0:00:20.4]} 36. Qe2
{[%clk 0:00:37.4]} 36... Qh3 {[%clk 0:00:17.9]} 37. Kc2 {[%clk 0:00:33.9]} 37...
h5 {[%clk 0:00:16.7]} 38. Kb3 {[%clk 0:00:33.6]} 38... h4 {[%clk 0:00:16.7]} 39.
Qe7 {[%clk 0:00:25]} 39... Kg7 {[%clk 0:00:13.5]} 40. Qe5+ {[%clk 0:00:19.7]}
40... Kh7 {[%clk 0:00:12.7]} 41. Qf6 {[%clk 0:00:18.8]} 41... Kg8 {[%clk
0:00:12.2]} 42. Qd8+ {[%clk 0:00:18.8]} 42... Kg7 {[%clk 0:00:11.7]} 43. gxh4
{[%clk 0:00:17.6]} 43... Qxh2 {[%clk 0:00:10.9]} 44. Qd4+ {[%clk 0:00:16.9]}
44... Kg8 {[%clk 0:00:09.5]} 45. Qf6 {[%clk 0:00:15.6]} 45... Qd2 {[%clk
0:00:08.3]} 46. Qd4 {[%clk 0:00:11.2]} 46... Qh2 {[%clk 0:00:07.7]} 47. Kb4
{[%clk 0:00:11.5]} 47... Qxh4 {[%clk 0:00:07.4]} 48. Kxb5 {[%clk 0:00:11.7]}
48... Qh5+ {[%clk 0:00:06.1]} 49. Kb4 {[%clk 0:00:11.7]} 49... Qh2 {[%clk
0:00:04.9]} 50. b3 {[%clk 0:00:11.6]} 50... Qb2 {[%clk 0:00:05]} 51. a4 {[%clk
0:00:11.9]} 51... Qd2 {[%clk 0:00:04.2]} 52. Qxd2 {[%clk 0:00:11.3]} 1-0

[Event "*** SCC Grand Prix: Titled Tuesday Blitz"]
[Site "Chess.com"]
[Date "2020.09.08"]
[Round "1"]
[White "ItsCheckM8Mate"]
[Black "Evgeny81"]
[Result "0-1"]
[WhiteElo "2315"]
[BlackElo "2640"]
[TimeControl "180+1"]
[EndTime "10:08:01 PDT"]
[Termination "Evgeny81 won by resignation"]

1. e4 {[%clk 0:02:28]} 1... c5 {[%clk 0:02:59.1]} 2. Nf3 {[%clk 0:02:27.6]} 2...
Nc6 {[%clk 0:02:59.3]} 3. d4 {[%clk 0:02:27]} 3... cxd4 {[%clk 0:03:00.2]} 4.
Nxd4 {[%clk 0:02:27.9]} 4... e5 {[%clk 0:03:00.5]} 5. Nb5 {[%clk 0:02:27.2]}
5... a6 {[%clk 0:03:00.9]} 6. Nd6+ {[%clk 0:02:26.8]} 6... Bxd6 {[%clk
0:03:00.9]} 7. Qxd6 {[%clk 0:02:27.4]} 7... Qe7 {[%clk 0:03:00.7]} 8. Qxe7+
{[%clk 0:02:27.2]} 8... Ngxe7 {[%clk 0:02:59.3]} 9. c4 {[%clk 0:01:47.5]} 9...
d6 {[%clk 0:02:58.6]} 10. Be3 {[%clk 0:01:42.6]} 10... f5 {[%clk 0:02:57.6]} 11.
Nc3 {[%clk 0:01:32]} 11... Be6 {[%clk 0:02:52.6]} 12. O-O-O {[%clk 0:01:30]}
12... Rd8 {[%clk 0:02:52.5]} 13. Bb6 {[%clk 0:01:26.8]} 13... Rd7 {[%clk
0:02:52.1]} 14. Be2 {[%clk 0:01:20]} 14... O-O {[%clk 0:02:47.3]} 15. Bf3 {[%clk
0:01:06.5]} 15... f4 {[%clk 0:02:42.7]} 16. Nd5 {[%clk 0:00:57.4]} 16... Nc8
{[%clk 0:02:36.5]} 17. a4 {[%clk 0:00:39.8]} 17... a5 {[%clk 0:01:49.7]} 18. b3
{[%clk 0:00:32]} 18... Nxb6 {[%clk 0:01:36.3]} 19. Nxb6 {[%clk 0:00:31.7]} 19...
Rdd8 {[%clk 0:01:36.9]} 20. Kb2 {[%clk 0:00:30.8]} 20... Nd4 {[%clk 0:01:33.6]}
21. h4 {[%clk 0:00:28.6]} 21... Kf7 {[%clk 0:01:29.1]} 22. Rd3 {[%clk
0:00:27.8]} 22... Ke7 {[%clk 0:01:23.5]} 23. Rc1 {[%clk 0:00:26.1]} 23... Rf6
{[%clk 0:01:21.3]} 24. Nd5+ {[%clk 0:00:22.2]} 24... Bxd5 {[%clk 0:01:20.1]} 25.
cxd5 {[%clk 0:00:20.3]} 25... Rf7 {[%clk 0:01:09.4]} 26. Rc4 {[%clk 0:00:19.9]}
26... Kf8 {[%clk 0:01:06.9]} 27. b4 {[%clk 0:00:19.7]} 27... b6 {[%clk
0:01:04.6]} 28. Bh5 {[%clk 0:00:16.5]} 28... Ra7 {[%clk 0:01:01.4]} 29. bxa5
{[%clk 0:00:15]} 29... Rxa5 {[%clk 0:01:00.1]} 30. Bd1 {[%clk 0:00:13.8]} 30...
Ke7 {[%clk 0:00:51.4]} 31. Rc7+ {[%clk 0:00:13.5]} 31... Rd7 {[%clk 0:00:51.1]}
32. Rdc3 {[%clk 0:00:13.5]} 32... Rc5 {[%clk 0:00:35.4]} 33. R7xc5 {[%clk
0:00:12.6]} 33... dxc5 {[%clk 0:00:36.3]} 34. h5 {[%clk 0:00:11]} 34... Kd6
{[%clk 0:00:35.9]} 35. Ka3 {[%clk 0:00:09.8]} 35... Ra7 {[%clk 0:00:35.8]} 36.
Kb2 {[%clk 0:00:09.4]} 36... Ra5 {[%clk 0:00:29.4]} 37. Ra3 {[%clk 0:00:08.8]}
37... c4 {[%clk 0:00:25.4]} 38. Rc3 {[%clk 0:00:08.4]} 38... Kc5 {[%clk
0:00:25.4]} 39. h6 {[%clk 0:00:06.6]} 39... gxh6 {[%clk 0:00:25.1]} 40. Rh3
{[%clk 0:00:06.3]} 40... b5 {[%clk 0:00:23.6]} 41. axb5 {[%clk 0:00:06.3]} 41...
Nxb5 {[%clk 0:00:24.2]} 42. Rxh6 {[%clk 0:00:06.1]} 42... c3+ {[%clk 0:00:24.4]}
43. Kc1 {[%clk 0:00:06.1]} 43... Ra1+ {[%clk 0:00:23.4]} 44. Kc2 {[%clk
0:00:06]} 44... Nd4+ {[%clk 0:00:22.6]} 45. Kxc3 {[%clk 0:00:06.2]} 45... Rxd1
{[%clk 0:00:22.5]} 46. Rxh7 {[%clk 0:00:06.3]} 46... Rc1+ {[%clk 0:00:19.3]} 47.
Kd2 {[%clk 0:00:04.3]} 47... Rc2+ {[%clk 0:00:19.1]} 48. Ke1 {[%clk 0:00:04.7]}
48... Re2+ {[%clk 0:00:18.5]} 49. Kf1 {[%clk 0:00:04.5]} 49... Rxe4 {[%clk
0:00:18.7]} 50. g3 {[%clk 0:00:03.6]} 50... fxg3 {[%clk 0:00:17.8]} 51. fxg3
{[%clk 0:00:03.6]} 51... Kxd5 {[%clk 0:00:18.2]} 0-1

[Event "*** SCC Grand Prix: Titled Tuesday Blitz"]
[Site "Chess.com"]
[Date "2020.09.08"]
[Round "1"]
[White "ailime26"]
[Black "woodpusher52"]
[Result "0-1"]
[WhiteElo "1895"]
[BlackElo "2478"]
[TimeControl "180+1"]
[EndTime "10:08:01 PDT"]
[Termination "woodpusher52 won by checkmate"]

1. e4 {[%clk 0:02:58]} 1... e5 {[%clk 0:02:58.4]} 2. Nf3 {[%clk 0:02:57.6]} 2...
Nc6 {[%clk 0:02:58.9]} 3. Nc3 {[%clk 0:02:58]} 3... Nf6 {[%clk 0:02:58.6]} 4. d4
{[%clk 0:02:58.4]} 4... exd4 {[%clk 0:02:59.5]} 5. Nxd4 {[%clk 0:02:58.7]} 5...
Bb4 {[%clk 0:02:59.9]} 6. Nxc6 {[%clk 0:02:51.9]} 6... bxc6 {[%clk 0:03:00.8]}
7. Bd3 {[%clk 0:02:51.1]} 7... d5 {[%clk 0:03:01]} 8. exd5 {[%clk 0:02:49.1]}
8... O-O {[%clk 0:03:01.3]} 9. O-O {[%clk 0:02:48.8]} 9... cxd5 {[%clk
0:02:53.4]} 10. Bg5 {[%clk 0:02:48]} 10... c6 {[%clk 0:02:49.5]} 11. Qf3 {[%clk
0:02:47.9]} 11... h6 {[%clk 0:02:46]} 12. Bxf6 {[%clk 0:02:47]} 12... Qxf6
{[%clk 0:02:46.9]} 13. Qxf6 {[%clk 0:02:46.8]} 13... gxf6 {[%clk 0:02:47.8]} 14.
Rab1 {[%clk 0:02:45.5]} 14... Be6 {[%clk 0:02:43.6]} 15. Ne2 {[%clk 0:02:44.7]}
15... c5 {[%clk 0:02:36.8]} 16. b3 {[%clk 0:02:44.2]} 16... Ba5 {[%clk 0:02:33]}
17. Nf4 {[%clk 0:02:43.8]} 17... Bc7 {[%clk 0:02:26.2]} 18. Nh5 {[%clk
0:02:42.2]} 18... Bd8 {[%clk 0:02:12.9]} 19. Rbe1 {[%clk 0:02:32.1]} 19... Bg4
{[%clk 0:02:05.6]} 20. Nf4 {[%clk 0:02:29.1]} 20... d4 {[%clk 0:02:00.5]} 21. f3
{[%clk 0:02:21.1]} 21... Bd7 {[%clk 0:01:58.4]} 22. Nh5 {[%clk 0:02:16.9]} 22...
a5 {[%clk 0:01:49.9]} 23. Re4 {[%clk 0:02:16.3]} 23... Bf5 {[%clk 0:01:27.6]}
24. Rf4 {[%clk 0:02:04.8]} 24... Bxd3 {[%clk 0:01:27.4]} 25. cxd3 {[%clk
0:02:04.3]} 25... Ra6 {[%clk 0:01:27.9]} 26. Rf5 {[%clk 0:02:00.8]} 26... Be7
{[%clk 0:01:13.5]} 27. Re1 {[%clk 0:02:00.5]} 27... Re6 {[%clk 0:01:12.5]} 28.
Re4 {[%clk 0:01:52.5]} 28... Kh7 {[%clk 0:01:05.8]} 29. Kf2 {[%clk 0:01:19]}
29... Kg6 {[%clk 0:01:02.4]} 30. Rd5 {[%clk 0:01:17.9]} 30... Rxe4 {[%clk
0:00:56.9]} 31. fxe4 {[%clk 0:01:06.3]} 31... a4 {[%clk 0:00:54.9]} 32. Nf4+
{[%clk 0:00:58.6]} 32... Kg7 {[%clk 0:00:50.4]} 33. Rd7 {[%clk 0:00:58.3]} 33...
Re8 {[%clk 0:00:40.4]} 34. bxa4 {[%clk 0:00:53.3]} 34... Bf8 {[%clk 0:00:39.3]}
35. Ra7 {[%clk 0:00:51.7]} 35... c4 {[%clk 0:00:29.4]} 36. dxc4 {[%clk 0:00:51]}
36... Rxe4 {[%clk 0:00:27]} 37. Nd5 {[%clk 0:00:48.5]} 37... d3 {[%clk
0:00:27.2]} 38. Rc7 {[%clk 0:00:46.6]} 38... d2 {[%clk 0:00:18.8]} 39. Nc3
{[%clk 0:00:46.3]} 39... Bb4 {[%clk 0:00:16.7]} 40. Nd1 {[%clk 0:00:40.4]} 40...
Re1 {[%clk 0:00:15.9]} 41. a5 {[%clk 0:00:12.8]} 41... Rxd1 {[%clk 0:00:14.7]}
42. Rd7 {[%clk 0:00:11.9]} 42... Bxa5 {[%clk 0:00:11.7]} 43. c5 {[%clk
0:00:12.1]} 43... Re1 {[%clk 0:00:08.8]} 44. c6 {[%clk 0:00:11.6]} 44... d1=Q
{[%clk 0:00:08.3]} 45. Rxd1 {[%clk 0:00:12.1]} 45... Rxd1 {[%clk 0:00:09.2]} 46.
Ke2 {[%clk 0:00:13]} 46... Rc1 {[%clk 0:00:09.2]} 47. g3 {[%clk 0:00:12]} 47...
Rxc6 {[%clk 0:00:09.1]} 48. Kf3 {[%clk 0:00:11.9]} 48... Rc2 {[%clk 0:00:09.2]}
49. Kg4 {[%clk 0:00:12.8]} 49... Rxa2 {[%clk 0:00:10.1]} 50. Kh3 {[%clk
0:00:13]} 50... Bc7 {[%clk 0:00:09]} 51. Kg4 {[%clk 0:00:12.9]} 51... Ra3 {[%clk
0:00:09.9]} 52. Kh3 {[%clk 0:00:13]} 52... Bd6 {[%clk 0:00:10.8]} 53. Kg4 {[%clk
0:00:13.1]} 53... Bf8 {[%clk 0:00:11.7]} 54. Kh3 {[%clk 0:00:13.5]} 54... Kg6
{[%clk 0:00:12.6]} 55. Kg4 {[%clk 0:00:14.2]} 55... Bg7 {[%clk 0:00:13.5]} 56.
Kh3 {[%clk 0:00:14.7]} 56... f5 {[%clk 0:00:14.4]} 57. Kh4 {[%clk 0:00:14.9]}
57... Kf6 {[%clk 0:00:15.3]} 58. Kh5 {[%clk 0:00:14.8]} 58... Ra2 {[%clk
0:00:14.7]} 59. Kh4 {[%clk 0:00:15.7]} 59... Rxh2# {[%clk 0:00:12.4]} 0-1

[Event "*** SCC Grand Prix: Titled Tuesday Blitz"]
[Site "Chess.com"]
[Date "2020.09.08"]
[Round "1"]
[White "SaraciNderim"]
[Black "freshfoodcompany"]
[Result "1-0"]
[WhiteElo "2678"]
[BlackElo "2343"]
[TimeControl "180+1"]
[EndTime "10:08:02 PDT"]
[Termination "SaraciNderim won by resignation"]

1. b3 {[%clk 0:02:54.5]} 1... d5 {[%clk 0:02:58.9]} 2. Bb2 {[%clk 0:02:52.7]}
2... Nf6 {[%clk 0:02:56.7]} 3. e3 {[%clk 0:02:52.8]} 3... c5 {[%clk 0:02:55.9]}
4. Nf3 {[%clk 0:02:53.1]} 4... Nc6 {[%clk 0:02:55.4]} 5. d4 {[%clk 0:02:53]}
5... Bg4 {[%clk 0:02:52.9]} 6. Be2 {[%clk 0:02:52.7]} 6... e6 {[%clk 0:02:52.2]}
7. O-O {[%clk 0:02:52.8]} 7... Be7 {[%clk 0:02:48.8]} 8. dxc5 {[%clk 0:02:53.1]}
8... Bxc5 {[%clk 0:02:46.1]} 9. a3 {[%clk 0:02:53.6]} 9... O-O {[%clk
0:02:44.6]} 10. b4 {[%clk 0:02:53.7]} 10... Be7 {[%clk 0:02:43.2]} 11. Nbd2
{[%clk 0:02:54]} 11... a6 {[%clk 0:02:42.5]} 12. c4 {[%clk 0:02:54.1]} 12...
dxc4 {[%clk 0:02:39.6]} 13. Nxc4 {[%clk 0:02:53.9]} 13... Nd5 {[%clk 0:02:26.1]}
14. h3 {[%clk 0:02:49.4]} 14... Bf5 {[%clk 0:02:20.8]} 15. Rc1 {[%clk
0:02:48.6]} 15... Bf6 {[%clk 0:02:18.8]} 16. Nd4 {[%clk 0:02:18.4]} 16... Nxd4
{[%clk 0:02:16.4]} 17. Bxd4 {[%clk 0:02:19.3]} 17... Bxd4 {[%clk 0:02:15]} 18.
Qxd4 {[%clk 0:02:20.2]} 18... Qf6 {[%clk 0:02:02.6]} 19. Qxf6 {[%clk 0:01:56.5]}
19... Nxf6 {[%clk 0:02:01.2]} 20. Nd6 {[%clk 0:01:54.5]} 20... Be4 {[%clk
0:01:57.5]} 21. Rc7 {[%clk 0:01:33.4]} 21... Ne8 {[%clk 0:01:49.6]} 22. Nxe8
{[%clk 0:01:26.3]} 22... Rfxe8 {[%clk 0:01:48.9]} 23. Bf3 {[%clk 0:01:25.9]}
23... Bxf3 {[%clk 0:01:47.4]} 24. gxf3 {[%clk 0:01:26.8]} 24... b5 {[%clk
0:01:46.4]} 25. Rd1 {[%clk 0:01:25.1]} 25... Rec8 {[%clk 0:01:27.4]} 26. Rb7
{[%clk 0:01:06]} 26... Rcb8 {[%clk 0:01:22.1]} 27. Re7 {[%clk 0:00:58.5]} 27...
Re8 {[%clk 0:01:19.8]} 28. Rxe8+ {[%clk 0:00:47]} 28... Rxe8 {[%clk 0:01:18.5]}
29. Rd7 {[%clk 0:00:47.9]} 29... Ra8 {[%clk 0:01:17.8]} 30. Rb7 {[%clk
0:00:47.1]} 30... g6 {[%clk 0:01:14.1]} 31. Kg2 {[%clk 0:00:47.1]} 31... Kg7
{[%clk 0:01:14]} 32. f4 {[%clk 0:00:47.5]} 32... Kf6 {[%clk 0:01:05.4]} 33. Kf3
{[%clk 0:00:47.6]} 33... h5 {[%clk 0:00:59]} 34. Ke4 {[%clk 0:00:46.6]} 34... h4
{[%clk 0:00:41.7]} 35. Kf3 {[%clk 0:00:45.5]} 35... a5 {[%clk 0:00:38.6]} 36.
Rxb5 {[%clk 0:00:43.3]} 36... axb4 {[%clk 0:00:38.6]} 37. axb4 {[%clk
0:00:43.2]} 37... Ra1 {[%clk 0:00:36.3]} 38. Rb8 {[%clk 0:00:41.1]} 38... Rh1
{[%clk 0:00:33.1]} 39. b5 {[%clk 0:00:39.2]} 39... g5 {[%clk 0:00:26.4]} 40.
fxg5+ {[%clk 0:00:37.2]} 40... Kxg5 {[%clk 0:00:25.4]} 41. b6 {[%clk 0:00:33.6]}
41... Rb1 {[%clk 0:00:18.3]} 42. b7 {[%clk 0:00:29.5]} 42... Kf5 {[%clk
0:00:15.8]} 43. Ke2 {[%clk 0:00:18]} 43... Ke5 {[%clk 0:00:13.6]} 44. Kd3 {[%clk
0:00:17.6]} 44... Kf5 {[%clk 0:00:08.8]} 45. Kd4 {[%clk 0:00:17]} 45... Rd1+
{[%clk 0:00:07.7]} 46. Kc5 {[%clk 0:00:16.3]} 46... Rc1+ {[%clk 0:00:07.8]} 47.
Kd6 {[%clk 0:00:16.5]} 47... Rd1+ {[%clk 0:00:07.8]} 48. Ke7 {[%clk 0:00:16]}
48... Rc1 {[%clk 0:00:03.6]} 49. Rc8 {[%clk 0:00:14.5]} 49... Rc7+ {[%clk
0:00:01.5]} 50. Rxc7 {[%clk 0:00:14.2]} 50... Ke5 {[%clk 0:00:01.2]} 51. b8=Q
{[%clk 0:00:13.8]} 51... Ke4 {[%clk 0:00:02.1]} 52. Kxf7 {[%clk 0:00:11.4]}
52... Kf3 {[%clk 0:00:03]} 53. Kxe6 {[%clk 0:00:11]} 53... Kxf2 {[%clk
0:00:03.9]} 54. Rf7+ {[%clk 0:00:08.9]} 54... Kxe3 {[%clk 0:00:04.8]} 55. Qb3+
{[%clk 0:00:07.7]} 1-0